bitfinex/quotes_SOLUSD_20240711
["timestamp","ask_amount","ask_price","bid_price","bid_amount"]
[1720701133102,17.2186,145.2,144.97,101.194184]
[1720701133296,6.893,145.08,144.97,1.194184]
[1720701133497,17.227,145.13,144.97,1.194184]
[1720701133814,6.8961,145.01,144.97,1.194184]
[1720701134121,6.8972,144.99,144.97,1.194184]
[1720701134420,0.17,144.98,144.97,1.194184]
[1720701134600,45.34,144.98,144.97,1.194184]
[1720701134916,0.34,144.98,144.97,1.194184]
[1720701135295,62.4137,144.98,144.97,0.834184]
[1720701135512,62.5837,144.98,144.97,8.4e-05]
[1720701135904,6.8994,144.94,144.93,0.04088475]
[1720701136096,69.1479,144.94,144.93,8.475e-05]
[1720701136302,51.8994,144.94,144.93,8.475e-05]
[1720701136700,6.9012,144.91,144.77,1.194184]
[1720701136897,6.9006,144.92,144.78,14.7087]
[1720701137097,45.0,144.94,144.76,6.6401]
[1720701137098,45.0,144.91,144.76,6.6401]
[1720701137301,30.91,144.87,144.74,1.266456]
[1720701137492,0.34,144.86,144.74,1.266456]
[1720701137700,45.34,144.86,144.74,1.266456]
[1720701138104,6.9062,144.8,144.74,1.266456]
[1720701138300,0.34,144.79,144.74,1.266456]
[1720701138521,6.9081,144.76,144.74,1.266456]
[1720701138734,0.34,144.79,144.74,1.266456]
[1720701139019,45.0,144.86,144.74,1.266456]
[1720701139229,15.0,145.03,144.74,1.266456]
[1720701139535,10.4314282,145.02,144.81,100.0]
[1720701139748,37.23538737,145.09,144.86,100.0]
[1720701139749,30.91,145.01,144.86,100.0]
[1720701139898,30.91,145.01,144.88,100.0]
[1720701140101,30.91,145.18,144.91,100.0]
[1720701140400,30.91,145.09,144.92,45.0]
[1720701140603,30.91,145.09,144.93,100.0]
[1720701140815,30.91,145.14,144.96,100.0]
[1720701141001,30.91,144.97,144.81,100.0]
[1720701141209,30.91,144.97,144.82,100.0]
[1720701141517,6.901,144.91,144.76,15.0]
[1720701141717,30.91,144.92,144.76,100.0]
[1720701141929,6.9005,144.92,144.76,100.0]
[1720701142106,30.91,144.97,144.8,100.0]
[1720701142306,45.17,144.96,144.8,100.0]
[1720701142520,45.17,144.96,144.74,101.266456]
[1720701142521,45.17,144.95,144.77,100.0]
[1720701142824,0.17,144.94,144.76,100.0]
[1720701143025,0.17,144.95,144.74,101.266456]
[1720701143323,17.2397,145.02,144.84,100.0]
[1720701143524,6.8988,144.96,144.82,100.0]
[1720701143715,6.8958,145.02,144.85,100.0]
[1720701144023,30.91,145.07,144.88,21.1839]
[1720701144230,30.91,145.03,144.88,21.1839]
[1720701144525,30.91,145.03,144.88,6.1839]
[1720701144824,30.91,144.99,144.77,6.0523]
[1720701145000,17.247,144.96,144.77,22.2313]
[1720701145198,6.9006,144.92,144.8,100.0]
[1720701145418,17.247,144.96,144.8,100.0]
[1720701145616,17.247,144.96,144.77,22.2313]
[1720701145617,0.17,144.95,144.77,22.2313]
[1720701145820,30.91,144.91,144.77,22.2313]
[1720701146010,6.9048,144.83,144.77,16.179]
[1720701146306,0.17,144.9,144.77,16.179]
[1720701146607,53.1413,144.97,144.79,100.0]
[1720701146811,9.01446343,144.98,144.88,100.0]
[1720701147012,6.8962,145.01,144.82,115.0]
[1720701147218,30.91,145.03,144.86,100.0]
[1720701147425,30.91,145.03,144.84,100.0]
[1720701147607,30.91,145.03,144.85,45.0]
[1720701147805,30.91,144.99,144.78,100.0]
[1720701148017,6.9009,144.91,144.78,115.0]
[1720701148219,6.9009,144.91,144.49,4.02895801]
[1720701148220,30.91,144.89,144.65,100.0]
[1720701148436,6.9084,144.75,144.6,100.0]
[1720701148616,17.2637,144.82,144.63,100.0]
[1720701148930,0.17,144.81,144.64,100.0]
[1720701149130,6.9071,144.78,144.64,15.0]
[1720701149306,30.91,144.79,144.61,5.8908]
[1720701149506,30.91,144.75,144.61,5.8908]
[1720701150405,6.9073,144.78,144.64,100.0]
[1720701150601,38.03328148,144.83,144.69,100.0]
[1720701150830,38.03328148,144.83,144.61,5.8908]
[1720701150831,30.91,144.83,144.71,100.0]
[1720701151035,6.9034,144.86,144.73,100.0]
[1720701151231,6.9047,144.83,144.67,115.0]
[1720701151407,6.9044,144.84,144.67,115.0]
[1720701151609,30.91,144.9,144.74,100.0]
[1720701151808,30.91,144.9,144.69,22.5068]
[1720701151809,30.91,144.97,144.8,100.0]
[1720701152008,17.2393,145.02,144.79,100.0]
[1720701152207,30.91,144.98,144.84,100.0]
[1720701152417,30.91,144.98,144.86,100.0]
[1720701152635,6.8946,145.04,144.91,100.0]
[1720701152934,6.893,145.08,144.93,100.0]
[1720701153109,30.91,145.11,144.94,45.0]
[1720701153312,6.8947,145.04,144.93,100.0]
[1720701153524,61.82,145.11,144.94,45.0]
[1720701153738,6.8942,145.05,144.92,100.0]
[1720701153927,30.91,145.11,144.93,45.17]
[1720701154137,6.8936,145.07,144.95,100.0]
[1720701154327,6.8938,145.06,144.94,45.0]
[1720701154539,6.8938,145.06,144.94,145.0]
[1720701154743,30.91,144.97,144.7,100.0]
[1720701154950,6.9007,144.92,144.78,100.0]
[1720701155142,6.9036,144.86,144.79,15.715]
[1720701155438,30.91,144.97,144.69,15.0]
[1720701155439,30.91,144.85,144.7,100.0]
[1720701155640,30.91,144.85,144.72,100.0]
[1720701155822,18.02667249,144.91,144.81,100.0]
[1720701156025,30.91,144.98,144.83,100.0]
[1720701156245,30.91,144.94,144.77,100.0]
[1720701156419,6.9072,144.78,144.7,15.0]
[1720701156747,37.8116,144.9,144.76,100.0]
[1720701157047,37.8116,144.9,144.73,15.0]
[1720701157048,17.4246,144.89,144.73,15.0]
[1720701157245,6.9033,144.86,144.74,100.0]
[1720701157543,6.9033,144.86,144.62,30.91]
[1720701157544,30.91,144.97,144.79,100.0]
[1720701157746,30.91,144.92,144.78,100.0]
[1720701157933,17.2466,144.96,144.8,100.0]
[1720701158131,6.8988,144.96,144.83,100.0]
[1720701158448,30.91,145.04,144.88,100.0]
[1720701158823,30.91,145.04,144.9,100.0]
[1720701159322,6.8951,145.03,144.92,100.0]
[1720701159521,6.8948,145.04,144.9,100.0]
[1720701159836,63.1394,145.11,144.89,100.34]
[1720701160041,30.91,145.07,144.87,6.5661]
[1720701160236,30.91,145.07,144.91,100.0]
[1720701160626,6.8951,145.04,144.91,100.0]
[1720701160828,6.894,145.06,144.95,100.0]
[1720701161130,45.91,145.11,144.95,100.0]
[1720701161352,6.8937,145.06,144.96,100.0]
[1720701161531,6.8945,145.05,144.96,100.0]
[1720701161738,30.91,145.11,144.96,100.0]
[1720701161739,6.8948,145.04,144.96,100.0]
[1720701161938,17.2308,145.09,144.96,100.0]
[1720701162249,6.8991,144.95,144.88,15.0]
[1720701162424,6.8975,144.98,144.89,100.0]
[1720701162624,34.4601,145.1,144.93,100.0]
[1720701162820,6.8949,145.04,144.94,100.0]
[1720701163038,34.4601,145.1,144.94,100.0]
[1720701163229,6.8935,145.07,144.95,200.0]
[1720701163441,6.8929,145.08,144.97,100.0]
[1720701163620,30.91,145.11,144.97,100.0]
[1720701164046,30.91,145.11,144.95,100.0]
[1720701164252,6.8944,145.05,144.95,100.0]
[1720701164448,6.8941,145.06,144.97,100.0]
[1720701164636,17.2316,145.09,144.96,100.0]
[1720701164849,30.91,145.11,144.98,100.0]
[1720701165035,49.4479,145.15,144.98,100.0]
[1720701165248,32.66905979,145.17,145.02,100.0]
[1720701165552,32.66905979,145.17,145.04,100.0]
[1720701165553,6.8911,145.12,145.04,100.0]
[1720701165748,15.44775979,145.17,145.06,100.0]
[1720701165926,17.217,145.21,145.06,100.0]
[1720701166132,30.91,145.22,145.08,100.0]
[1720701166428,17.2157,145.22,145.09,100.0]
[1720701166636,30.91,145.23,145.09,100.0]
[1720701167034,6.8884,145.17,145.07,100.0]
[1720701167242,6.8894,145.15,145.07,100.0]
[1720701167444,6.8892,145.16,145.08,100.0]
[1720701167637,17.2181,145.2,145.08,100.0]
[1720701167953,65.3387,145.23,145.1,100.0]
[1720701168126,30.91,145.23,145.08,100.0]
[1720701168533,6.8874,145.2,145.12,100.0]
[1720701168734,48.1199,145.27,145.12,100.0]
[1720701168931,6.8859,145.23,145.14,100.0]
[1720701169162,17.2052,145.31,145.14,100.0]
[1720701169333,6.8862,145.22,145.15,100.0]
[1720701169534,49.495914,145.32,145.15,100.0]
[1720701169847,17.2109,145.26,145.08,115.0]
[1720701170043,17.2109,145.26,145.1,100.0]
[1720701170439,17.2109,145.26,145.14,100.0]
[1720701170646,25.202081,145.3,145.14,100.0]
[1720701171054,6.8848,145.25,145.14,100.0]
[1720701171258,7.995681,145.3,145.16,100.0]
[1720701171646,6.8832,145.29,145.18,100.0]
[1720701171968,7.995681,145.3,145.18,100.0]
[1720701172149,7.995681,145.3,145.21,100.0]
[1720701172333,7.995681,145.3,145.2,100.0]
[1720701172534,7.995681,145.3,145.17,15.0]
[1720701172535,7.995681,145.3,145.26,100.0]
[1720701173869,1.20147854,145.04,144.8,100.0]
[1720701174163,6.9053,144.82,144.7,100.0]
[1720701174343,17.2514,144.92,144.76,15.104573]
[1720701174535,6.9054,144.82,144.76,15.104573]
[1720701174732,30.91,144.97,144.77,100.0]
[1720701175039,17.102645,144.98,144.9,100.0]
[1720701175440,37.8031,145.08,144.94,100.0]
[1720701175638,30.91,145.11,144.97,100.0]
[1720701176146,30.91,145.17,144.95,200.0]
[1720701176345,6.10391441,145.07,144.95,200.0]
[1720701176663,6.10391441,145.07,144.97,100.0]
[1720701177161,37.01391441,145.07,144.9,100.0]
[1720701177568,6.8962,145.01,144.9,100.0]
[1720701177859,37.01391441,145.07,144.94,100.0]
[1720701178165,6.10391441,145.07,144.9,100.0]
[1720701178462,6.8948,145.04,144.92,100.0]
[1720701178664,6.10391441,145.07,144.96,100.0]
[1720701178864,6.10391441,145.07,144.94,100.0]
[1720701179069,6.10391441,145.07,144.91,15.0]
[1720701179245,12.99731441,145.07,144.94,100.0]
[1720701179452,6.10391441,145.07,144.92,100.0]
[1720701179652,6.10391441,145.07,144.91,15.0]
[1720701179653,6.10391441,145.07,144.98,100.0]
[1720701179953,6.10391441,145.07,145.0,100.0]
[1720701180162,51.6613,145.18,144.98,100.0]
[1720701180451,6.8908,145.12,145.0,100.0]
[1720701180654,6.8905,145.13,145.0,100.0]
[1720701180971,11.08881384,145.2,145.02,100.0]
[1720701181145,6.8904,145.13,145.01,60.0]
[1720701181352,17.2194,145.19,144.98,115.0]
[1720701181550,6.8944,145.05,144.95,100.0]
[1720701181761,44.21853254,145.18,144.93,100.0]
[1720701181964,61.43863254,145.18,144.95,200.0]
[1720701182176,6.8899,145.14,144.95,215.0]
[1720701182359,6.893,145.08,144.95,215.0]
[1720701182556,12.22357961,145.17,144.99,100.0]
[1720701182765,12.22357961,145.17,145.04,100.0]
[1720701183071,11.05120863,145.21,145.06,100.0]
[1720701183688,11.05120863,145.21,145.12,100.0]
[1720701183977,11.29589851,145.29,145.15,100.0]
[1720701184157,1.381714,145.32,145.15,200.0]
[1720701184359,6.8835,145.28,145.17,100.0]
[1720701184560,1.381714,145.32,145.15,100.0]
[1720701184561,1.381714,145.32,145.19,100.0]
[1720701184978,1.381714,145.32,145.17,100.0]
[1720701185158,8.263114,145.32,145.18,145.17]
[1720701185482,1.381714,145.32,145.21,100.0]
[1720701185663,1.381714,145.32,145.24,100.0]
[1720701186167,1.381714,145.32,145.26,100.0]
[1720701186368,1.381714,145.32,145.25,45.0]
[1720701186369,1.381714,145.32,145.27,100.0]
[1720701187085,11.10424396,145.48,145.31,100.0]
[1720701187271,15.0,145.51,145.31,200.0]
[1720701187587,6.8755,145.45,145.34,100.0]
[1720701187763,15.0,145.51,145.32,45.0]
[1720701187972,15.0,145.51,145.33,100.0]
[1720701188265,6.8849,145.25,145.17,100.0]
[1720701188463,48.99,145.42,145.17,100.0]
[1720701188670,6.8841,145.27,145.17,100.0]
[1720701188853,15.0,145.35,145.17,100.0]
[1720701189057,24.28866994,145.41,145.17,100.0]
[1720701189058,10.15231421,145.36,145.17,100.0]
[1720701189283,6.8805,145.34,145.2,100.0]
[1720701189475,17.201,145.35,145.17,200.0]
[1720701189672,15.0,145.45,145.22,100.0]
[1720701189982,15.0,145.44,145.22,100.0]
[1720701190165,48.99,145.42,145.15,100.0]
[1720701190475,6.8833,145.28,145.19,100.0]
[1720701190781,34.3909,145.39,145.19,100.0]
[1720701190959,0.17,145.38,145.19,100.0]
[1720701191284,6.8817,145.32,145.18,100.0]
[1720701191457,15.0,145.37,145.18,100.0]
[1720701191657,34.3882,145.4,145.2,100.0]
[1720701191881,6.8797,145.36,145.2,100.0]
[1720701192066,17.1967,145.38,145.2,100.0]
[1720701192266,32.1923,145.42,145.19,100.0]
[1720701192479,15.0,145.39,145.22,100.0]
[1720701192671,15.0,145.39,145.16,115.0]
[1720701192672,17.2008,145.35,145.17,100.0]
[1720701192872,6.8793,145.37,145.22,100.0]
[1720701193065,33.99,145.46,145.24,100.0]
[1720701193378,33.99,145.46,145.19,100.0]
[1720701193678,10.64073219,145.49,145.24,100.0]
[1720701193981,17.1889,145.45,145.26,100.0]
[1720701194283,27.82443219,145.49,145.29,100.0]
[1720701194473,27.82443219,145.49,145.31,100.0]
[1720701194779,10.64073219,145.49,145.36,100.0]
[1720701195081,15.0,145.5,145.32,100.0]
[1720701195260,6.8737,145.49,145.34,100.0]
[1720701195580,15.0,145.52,145.36,100.0]
[1720701195881,15.0,145.52,145.34,100.0]
[1720701196086,15.0,145.52,145.35,45.0]
[1720701196279,32.1803,145.52,145.37,100.0]
[1720701196467,6.8724,145.51,145.37,100.0]
[1720701196672,21.8719,145.52,145.37,100.0]
[1720701196869,15.0,145.52,145.39,100.0]
[1720701197390,6.873,145.5,145.38,100.0]
[1720701197585,15.0,145.52,145.38,100.0]
[1720701197766,15.0,145.52,145.36,100.0]
[1720701198265,6.8737,145.49,145.36,100.0]
[1720701198580,1.381714,145.56,145.38,100.0]
[1720701198783,1.381714,145.56,145.35,45.0]
[1720701198784,15.0,145.53,145.4,100.0]
[1720701198987,34.3393,145.61,145.42,100.0]
[1720701198988,0.7781804,145.56,145.42,100.0]
[1720701199170,7.6485804,145.56,145.44,100.0]
[1720701199372,0.7781804,145.56,145.47,100.0]
[1720701199583,0.7781804,145.56,145.5,200.0]
[1720701199764,0.7781804,145.56,145.52,100.0]
[1720701199971,0.7781804,145.56,145.5,200.0]
[1720701200182,0.7781804,145.56,145.52,100.0]
[1720701200369,0.7781804,145.56,145.5,100.0]
[1720701200578,0.7781804,145.56,145.45,100.0]
[1720701200784,0.7781804,145.56,145.42,6.5602]
[1720701200966,31.3781804,145.56,145.42,6.5602]
[1720701201469,31.3781804,145.56,145.43,100.0]
[1720701201682,0.7781804,145.56,145.45,100.0]
[1720701202070,0.7781804,145.56,145.43,100.0]
[1720701202273,7.6483804,145.56,145.46,100.0]
[1720701202584,0.7781804,145.56,145.44,100.0]
[1720701203295,0.17,145.55,145.4,100.0]
[1720701203991,0.17,145.55,145.44,100.0]
[1720701204201,0.34,145.55,145.42,100.0]
[1720701204505,0.34,145.55,145.38,100.0]
[1720701204671,0.17,145.55,145.4,100.0]
[1720701204871,0.7781804,145.56,145.42,100.0]
[1720701205073,6.873,145.5,145.42,100.0]
[1720701205389,0.34,145.55,145.42,100.0]
[1720701205889,0.7781804,145.56,145.42,100.0]
[1720701206087,0.7781804,145.56,145.44,100.0]
[1720701206272,0.7781804,145.56,145.48,100.0]
[1720701206995,0.7781804,145.56,145.5,100.0]
[1720701207394,0.7781804,145.56,145.55,100.0]
[1720701207697,8.04e-05,145.56,145.55,100.0]
[1720701207900,1.1908993,145.62,145.59,100.0]
[1720701208072,1.1908993,145.62,145.51,21.01]
[1720701208073,1.1908993,145.62,145.61,100.0]
[1720701208885,1.1908993,145.62,145.53,100.0]
[1720701209278,1.1908993,145.62,145.5,122.6832]
[1720701209487,6.8694,145.58,145.5,6.5958]
[1720701209687,1.1908993,145.62,145.5,6.5958]
[1720701210073,1.1908993,145.62,145.46,100.0]
[1720701210389,0.17,145.61,145.46,100.0]
[1720701210595,6.8681,145.6,145.48,100.0]
[1720701210794,1.1908993,145.62,145.51,100.0]
[1720701210985,1.1908993,145.62,145.49,100.0]
[1720701211290,1.1908993,145.62,145.46,100.0]
[1720701211687,1.1908993,145.62,145.42,100.0]
[1720701211688,1.1908993,145.62,145.48,100.0]
[1720701211992,30.6,145.61,145.42,100.0]
[1720701212188,45.34,145.6,145.42,100.0]
[1720701212376,45.34,145.6,145.43,100.0]
[1720701212572,75.6,145.59,145.41,100.0]
[1720701212772,0.34,145.58,145.4,23.067]
[1720701212993,6.8718,145.53,145.41,100.0]
[1720701213191,0.34,145.52,145.41,100.0]
[1720701213396,45.34,145.58,145.36,100.0]
[1720701213397,6.8726,145.51,145.36,100.0]
[1720701213694,15.0,145.59,145.4,100.0]
[1720701213884,75.94,145.58,145.4,100.0]
[1720701214089,75.94,145.58,145.41,100.0]
[1720701214403,30.77,145.58,145.43,100.0]
[1720701214577,0.17,145.58,145.43,100.0]
[1720701214908,7.0391,145.58,145.43,100.0]
[1720701215075,6.8692,145.58,145.46,100.0]
[1720701215272,6.8684,145.6,145.46,100.0]
[1720701215577,1.1908993,145.62,145.5,100.0]
[1720701215780,8.0580993,145.62,145.5,100.0]
[1720701215989,1.1908993,145.62,145.5,100.0]
[1720701216290,1.1908993,145.62,145.53,100.0]
[1720701216506,1.1908993,145.62,145.51,100.0]
[1720701216674,1.1908993,145.62,145.48,100.0]
[1720701216873,1.1908993,145.62,145.5,100.0]
[1720701217084,1.1908993,145.62,145.57,100.0]
[1720701217291,1.1908993,145.62,145.59,100.0]
[1720701217491,1.1908993,145.62,145.55,100.0]
[1720701217700,1.1908993,145.62,145.57,100.0]
[1720701218693,1.1908993,145.62,145.55,100.0]
[1720701219000,1.1908993,145.62,145.6,100.0]
[1720701219199,1.1908993,145.62,145.58,100.0]
[1720701219403,1.1908993,145.62,145.6,100.0]
[1720701219584,1.1908993,145.62,145.56,100.0]
[1720701219776,1.1908993,145.62,145.58,100.0]
[1720701220179,1.1908993,145.62,145.54,100.0]
[1720701220391,1.1908993,145.62,145.6,100.0]
[1720701220783,1.1908993,145.62,145.6,120.84]
[1720701220982,1.1908993,145.62,145.6,100.0]
[1720701221394,1.1908993,145.62,145.61,0.17]
[1720701221703,0.04084387,145.65,145.64,120.84]
[1720701221882,0.04084387,145.65,145.64,181.18]
[1720701222083,15.07854713,145.85,145.67,100.0]
[1720701222291,1.1906,145.9,145.7,115.0]
[1720701222595,1.1906,145.9,145.64,45.34]
[1720701222596,30.6,145.74,145.54,127.516345]
[1720701222796,30.6,145.74,145.53,100.0]
[1720701222797,6.8664,145.64,145.53,100.0]
[1720701222991,30.6,145.69,145.52,100.0]
[1720701223401,30.6,145.69,145.54,100.0]
[1720701223595,45.17,145.68,145.51,6.0595]
[1720701223795,30.6,145.65,145.51,100.0]
[1720701223981,15.28814528,145.78,145.57,100.0]
[1720701224181,30.6,145.72,145.53,100.0]
[1720701224382,30.6,145.68,145.52,100.0]
[1720701224598,30.6,145.68,145.48,100.0]
[1720701224785,30.6,145.68,145.44,100.0]
[1720701224786,30.6,145.63,145.44,100.0]
[1720701224987,30.6,145.63,145.41,100.0]
[1720701225198,30.6,145.59,145.41,100.0]
[1720701225507,45.34,145.58,145.45,100.0]
[1720701225706,45.34,145.58,145.44,100.0]
[1720701225898,0.34,145.58,145.44,100.0]
[1720701226108,1.1906,145.64,145.5,6.0]
[1720701226299,0.34,145.63,145.5,6.0]
[1720701226493,0.17,145.63,145.5,6.0]
[1720701226699,6.8656,145.66,145.52,100.0]
[1720701226917,6.8664,145.64,145.5,106.0]
[1720701227215,30.6,145.67,145.5,106.0]
[1720701227504,1.1906,145.72,145.55,100.0]
[1720701227708,6.8644,145.68,145.55,100.0]
[1720701227891,1.1906,145.72,145.56,100.0]
[1720701228205,30.6,145.73,145.53,100.0]
[1720701228409,6.8654,145.66,145.55,100.0]
[1720701228606,30.6,145.73,145.54,100.0]
[1720701228811,6.8651,145.67,145.52,100.0]
[1720701229016,30.6,145.73,145.52,100.0]
[1720701229199,30.6,145.73,145.59,100.0]
[1720701229402,30.6,145.73,145.56,100.0]
[1720701229724,30.6,145.73,145.57,100.0]
[1720701229900,6.8644,145.68,145.57,100.0]
[1720701230109,79.5371,145.81,145.6,100.0]
[1720701230610,6.863,145.71,145.61,45.0]
[1720701230810,6.8625,145.72,145.61,100.0]
[1720701231015,17.1501,145.78,145.59,100.0]
[1720701231208,30.6,145.77,145.61,100.0]
[1720701231407,6.8615,145.74,145.62,100.0]
[1720701231602,6.8615,145.75,145.64,100.0]
[1720701231802,6.863,145.71,145.62,100.0]
[1720701232007,30.6,145.77,145.62,100.0]
[1720701232205,17.154,145.74,145.58,145.0]
[1720701232428,64.9019,145.77,145.6,100.0]
[1720701232713,64.9019,145.77,145.59,100.0]
[1720701232915,6.8646,145.68,145.57,200.0]
[1720701233095,30.6,145.73,145.57,200.0]
[1720701233297,34.3005,145.78,145.59,100.0]
[1720701233501,6.8619,145.74,145.59,100.0]
[1720701233699,6.8622,145.73,145.59,100.0]
[1720701233902,6.8626,145.72,145.59,100.0]
[1720701234106,31.99133274,145.71,145.57,200.0]
[1720701234307,6.87,145.57,145.5,6.0]
[1720701234600,1.39133274,145.63,145.5,106.0]
[1720701234810,30.6,145.65,145.5,6.0]
[1720701234811,1.39133274,145.64,145.5,6.0]
[1720701235203,1.39133274,145.64,145.5,106.0]
[1720701235400,0.17,145.63,145.5,106.0]
[1720701235621,0.34,145.63,145.5,6.0]
[1720701236104,1.73133274,145.63,145.5,6.0]
[1720701236304,0.34,145.63,145.5,6.0]
[1720701236503,46.73133274,145.63,145.5,6.0]
[1720701236716,0.34,145.63,145.51,100.0]
[1720701236897,6.8672,145.62,145.51,100.0]
[1720701237102,6.8659,145.65,145.51,100.0]
[1720701237301,6.8672,145.62,145.51,100.0]
[1720701237601,1.39133274,145.67,145.51,100.0]
[1720701237801,6.8677,145.61,145.51,100.0]
[1720701238108,6.8684,145.6,145.5,6.0]
[1720701238308,6.8677,145.61,145.5,6.0]
[1720701238632,6.8683,145.6,145.53,17.1783]
[1720701238799,6.8691,145.58,145.51,6.8723]
[1720701239001,30.6,145.68,145.57,6.8694]
[1720701239218,6.8661,145.65,145.57,6.8694]
[1720701239411,30.6,145.68,145.56,17.1748]
[1720701239619,17.1557,145.73,145.59,17.1711]
[1720701239804,17.1557,145.73,145.52,100.0]
[1720701239805,6.8649,145.67,145.6,6.8678]
[1720701240000,17.1588,145.7,145.58,17.172]
[1720701240206,30.6,145.71,145.58,17.172]
[1720701240207,6.8651,145.67,145.58,17.172]
[1720701240429,15.0,145.73,145.61,17.1679]
[1720701240614,6.8634,145.7,145.63,6.8665]
[1720701240936,6.864,145.69,145.64,0.98611504]
[1720701241127,6.8649,145.67,145.61,0.98747144]
[1720701241335,47.7548,145.74,145.61,7.85477144]
[1720701241524,6.8612,145.75,145.68,6.8642]
[1720701241822,14.63008187,145.77,145.69,0.98754382]
[1720701242029,30.6,145.78,145.69,0.98754382]
[1720701242211,30.6,145.78,145.69,18.14644382]
[1720701242409,30.6,145.78,145.7,1.37217056]
[1720701242612,6.8604,145.77,145.7,6.8633]
[1720701242821,1.1908993,145.82,145.71,18.52869233]
[1720701243129,17.146,145.81,145.68,17.1602]
[1720701243334,1.1908993,145.82,145.8,6.8585]
[1720701243832,1.1908993,145.82,145.69,234.3177]
[1720701244007,1.1908993,145.82,145.73,6.8616]
[1720701244212,6.8607,145.76,145.65,100.0]
[1720701244410,30.6,145.76,145.63,6.0308]
[1720701244609,15.0,145.75,145.64,17.1644]
[1720701244827,6.8653,145.66,145.58,6.8686]
[1720701245033,17.1601,145.69,145.56,100.0]
[1720701245241,30.6,145.66,145.52,17.1792]
[1720701245437,0.17,145.65,145.52,17.1792]
[1720701245732,0.17,145.65,145.53,1.31970597]
[1720701245733,30.6,145.62,145.53,1.31970597]
[1720701246115,6.8682,145.6,145.53,1.31970597]
[1720701246318,30.6,145.62,145.53,1.31970597]
[1720701246514,0.17,145.61,145.53,1.31970597]
[1720701246735,6.8685,145.6,145.51,24.0525]
[1720701246922,0.17,145.61,145.52,1.37394229]
[1720701247119,45.17,145.61,145.52,1.37394229]
[1720701247325,0.17,145.6,145.52,1.37394229]
[1720701247514,0.34,145.6,145.52,1.37394229]
[1720701247709,6.8696,145.57,145.52,1.37394229]
[1720701247913,0.34,145.6,145.52,1.37394229]
[1720701247914,6.87,145.56,145.52,1.37394229]
[1720701248124,37.8094,145.58,145.51,1.37394229]
[1720701248343,30.6,145.54,145.5,6.0]
[1720701248521,0.34,145.53,145.5,6.0]
[1720701248714,30.6,145.54,145.5,6.0]
[1720701248918,30.6,145.56,145.5,6.0]
[1720701249333,0.34,145.55,145.5,6.0]
[1720701249525,6.8717,145.53,145.5,6.0]
[1720701249724,6.872,145.52,145.5,6.0]